{"text_format":"1","workbook":"xlsx","n_sheets":4,"sheets":["Alkalmazás","Első","Harmadik","Második"],"not_rendered":{"charts":0,"images":1,"macros":1,"external_links":0,"defined_names":7,"comments":0,"pivot_tables":0},"unopened":[],"bounds":{"document_bytes":16777216,"sheet_cells":100000,"rows_first":2000,"rows_last":500,"rows_between":2000,"halvings":0,"cell_chars":16384,"cell_head_chars":4096},"cells_cut":0,"cells_raw":0,"read":"whole","date_system":"1900"}

{"sheet":"Alkalmazás","index":0,"n_rows":10,"n_cols":2,"rows_kept":10,"cut":false,"hidden":false,"merged":[]}
[null,"Eredeti Vízszintes lista"]
[]
[]
[null,"Csak a lapnevek vízszintesen"]
[]
[]
[null,"Kitöltés vízszintesen"]
[]
[]
[null,"Kitöltés függőlegesen"]

{"sheet":"Első","index":1,"n_rows":25,"n_cols":13,"rows_kept":25,"cut":false,"hidden":false,"merged":[]}
[null,"Munkalapok listája"]
[null,"Alap:","GET.WORKBOOK",null,null,"MUNKAFÜZETET.VESZ",null,null,null,null,null,"EXCEL 4.0 makro függvény"]
[null,null,"Argumentumok",null,null,null,null,null,null,null,null,"telejs referencia","http://www.microsoft.com/en-us/download/details.aspx?id=19243"]
[null,null,1,"Munkalapnevek vízszintes tömbje [Munkafüzet]Munkalap formátumban",null,null,{"$f":"munkalapok_alap","v":"[Munkalapok_listaja.xlsm]Alkalmazás"},"[Munkalapok_listaja.xlsm]Első","[Munkalapok_listaja.xlsm]Második","[Munkalapok_listaja.xlsm]Harmadik",null,"csak ez a függvény","http://answers.microsoft.com/en-us/mac/forum/macoffice2011-macexcel/getworkbook-help-in-macro-language-in-excel-2011/a359708d-b5b7-48ba-8d1e-c4114d4642d2"]
[null,null,16,"Munkafüzet név",null,null,{"$f":"munkafuzet","v":"Munkalapok_listaja.xlsm"},null,null,null,null,"Kompatibilitási okokból van még"]
[null,null,38,"Aktuális munkalapnév",null,null,{"$f":"munkalap","v":"Első"},null,null,null,null,"Ha használjuk, akkor makróbarát munkafüzetbe kell menteni"]
[null,null,null,null,null,null,null,null,null,null,null,"Csak számított névtartományként működik"]
[]
[null,"Munkafüzetnév törölve, kitöltve lefelé",null,null,null,null,"Munkafüzetnév törölve"]
[null,"Nem Volatile",null,null,null,null,"Volatile megoldva: A T(MOST()) függvénnyel, üres sztringet fűzünk hozzá"]
[null,{"$f":"INDEX(munkalapok_listaja_masik,1)","v":"Alkalmazás"},{"$f":"INDEX(munkalapok_listaja_masik,ROWS($C$11:$C11))","v":"Alkalmazás"},null,null,null,{"$f":"INDEX(munkalapok_listaja_masik,ROWS($G$11:$G11))&T(NOW())","v":"Alkalmazás"}]
[null,{"$f":"INDEX(munkalapok_listaja_masik,2)","v":"Első"},{"$f":"INDEX(munkalapok_listaja_masik,ROWS($C$11:$C12))","v":"Első"},null,null,null,{"$f":"INDEX(munkalapok_listaja_masik,ROWS($G$11:$G12))&T(NOW())","v":"Első"},null,"Követi"]
[null,{"$f":"INDEX(munkalapok_listaja_masik,3)","v":"Második"},{"$f":"INDEX(munkalapok_listaja_masik,ROWS($C$11:$C13))","v":"Második"},null,null,null,{"$f":"INDEX(munkalapok_listaja_masik,ROWS($G$11:$G13))&T(NOW())","v":"Harmadik"},null,"Átnevezés"]
[null,{"$f":"INDEX(munkalapok_listaja_masik,4)","v":"Harmadik"},{"$f":"INDEX(munkalapok_listaja_masik,ROWS($C$11:$C14))","v":"Harmadik"},null,null,null,{"$f":"INDEX(munkalapok_listaja_masik,ROWS($G$11:$G14))&T(NOW())","v":"Második"},null,"Törlés"]
[null,null,{"$f":"INDEX(munkalapok_listaja_masik,ROWS($C$11:$C15))","v":{"$error":"#REF!"}},null,null,null,{"$f":"INDEX(munkalapok_listaja_masik,ROWS($G$11:$G15))&T(NOW())","v":{"$error":"#REF!"}},null,"Sorrend változtatás"]
[null,null,null,null,null,null,{"$f":"INDEX(munkalapok_listaja_masik,ROWS($G$11:$G16))&T(NOW())","v":{"$error":"#REF!"}},null,"Új munkalap beszúrást nem!!!"]
[]
[null,"Tömbképlettel - CSE - Statikus"]
[null,{"$f":"munkalapok_listaja_masik","v":"Alkalmazás"},"Első","Második","Harmadik"]
[]
[null,"Transzponálva",null,null,null,"Ezeknél előre ki kell jelölni annyi cellát, amennyi nevet várunk"]
[null,{"$f":"munkalapok_listaja_fuggoleges","v":"Alkalmazás"}]
[null,"Első"]
[null,"Második"]
[null,"Harmadik"]

{"sheet":"Harmadik","index":2,"n_rows":0,"n_cols":0,"rows_kept":0,"cut":false,"hidden":false,"merged":[]}

{"sheet":"Második","index":3,"n_rows":0,"n_cols":0,"rows_kept":0,"cut":false,"hidden":false,"merged":[]}